fUST/lending_fUST_20251219
["ID","MTS","AMOUNT","RATE_DAILY","PERIOD"]
[399113480,1766110883184,500.0,0.00013273,2]
[399113481,1766110890999,5000.0,0.00013515,2]
[399113482,1766110892531,500.0,0.00013273,2]
[399113496,1766110914932,2331.83841004,0.00013515,2]
[399113497,1766110914953,2668.16158996,0.00013515,2]
[399113507,1766110923103,500.0,0.00013273,2]
[399113508,1766110923219,500.0,0.00013273,2]
[399113509,1766110924280,500.0,0.00013273,2]
[399113512,1766110932175,2336.15264066,0.00013515,2]
[399113513,1766110939910,235.57,9.132e-05,2]
[399113514,1766110940407,471.14,9.962e-05,2]
[399113515,1766110940594,2788.98576938,0.00013515,2]
[399113516,1766110940615,2211.01423062,0.00013515,2]
[399113517,1766110940785,706.71,0.00010793,2]
[399113519,1766110941196,942.28,0.00011623,2]
[399113520,1766110941682,1177.86,0.00012453,2]
[399113522,1766110942185,1413.43,0.00013283,2]
[399113528,1766110964662,3548.71576938,0.00013515,2]
[399113530,1766110964686,1451.28423062,0.00013515,2]
[399113538,1766110983280,500.0,0.00013273,2]
[399113539,1766110984315,500.0,0.00013273,2]
[399113540,1766110984601,500.0,0.00013273,2]
[399113542,1766110988408,5000.0,0.00013515,2]
[399113544,1766110989439,500.0,0.00013273,2]
[399113545,1766110991167,500.0,0.00013273,2]
[399113547,1766110994536,1048.72576938,0.00012802,2]
[399113548,1766110994559,4667.56171802,0.00012802,2]
[399113551,1766110997902,-612.0,0.00013523,2]
[399113556,1766111005178,5000.0,0.00013523,2]
[399113557,1766111006202,500.0,0.00013273,2]
[399113561,1766111013486,3276.01,0.00013523,2]
[399113562,1766111013508,1723.99,0.00013523,2]
[399113598,1766111020520,172.61,0.00010417,2]
[399113599,1766111021189,345.22,0.00011364,2]
[399113600,1766111021666,517.83,0.00012311,2]
[399113601,1766111022200,690.44,0.00013258,2]
[399113606,1766111038115,5000.0,0.00013523,2]
[399113611,1766111043572,500.0,0.00013273,2]
[399113612,1766111043608,500.0,0.00013273,2]
[399113616,1766111063036,549.92,0.00013523,2]
[399113617,1766111063059,4450.08,0.00013523,2]
[399113622,1766111086611,5000.0,0.00013523,2]
[399113623,1766111103318,501.96115267,0.00013273,2]
[399113624,1766111106448,47.96884733,0.00013273,2]
[399113625,1766111106469,452.03115267,0.00013273,2]
[399113626,1766111107005,500.0,0.00013273,2]
[399113627,1766111108792,150.64,0.00010371,2]
[399113628,1766111109306,301.28,0.00011314,2]
[399113629,1766111109792,451.92,0.00012257,2]
[399113630,1766111110294,602.56,0.000132,2]
[399113631,1766111111087,5000.0,0.00013523,2]
[399113632,1766111111177,500.0,0.00013273,2]
[399113633,1766111119360,500.0,0.00013273,2]
[399113634,1766111132742,500.0,0.00013273,2]
[399113636,1766111136505,1041.57884733,0.00013523,2]
[399113637,1766111136530,3958.42115267,0.00013523,2]
[399113661,1766111160681,5000.0,0.00013523,2]
[399113671,1766111185653,1041.58884733,0.00013523,2]
[399113672,1766111185690,3958.41115267,0.00013523,2]
[399113673,1766111190337,150.0,8.8e-05,2]
[399113674,1766111190804,270.4,9.6e-05,2]
[399113675,1766111191303,405.6,0.000104,2]
[399113676,1766111191682,540.79,0.000112,2]
[399113677,1766111192188,675.99,0.00012,2]
[399113678,1766111192670,811.19,0.000128,2]
[399113695,1766111209965,3187.62884733,0.00013523,2]
[399113696,1766111209987,1812.37115267,0.00013523,2]
[399113703,1766111224337,500.0,0.00013273,2]
[399113726,1766111230270,500.0,0.00013273,2]
[399113733,1766111233773,5000.0,0.00013523,2]
[399113742,1766111237707,317.73,0.00013273,2]
[399113751,1766111244404,999.0,0.000127,2]
[399113764,1766111249812,500.0,0.00013273,2]
[399113788,1766111258282,370.90884733,0.00013523,2]
[399113789,1766111258307,4629.09115267,0.00013523,2]
[399113793,1766111271274,150.0,9.448e-05,2]
[399113794,1766111271755,197.75,0.00010306,2]
[399113795,1766111272265,296.63,0.00011165,2]
[399113797,1766111272762,395.5,0.00012024,2]
[399113798,1766111273162,494.38,0.00012883,2]
[399113802,1766111282161,3836.65884733,0.00013523,2]
[399113803,1766111282186,1163.34115267,0.00013523,2]
[399113827,1766111304307,-4105.6954088,0.00013523,2]
[399113828,1766111304451,-1788.6191824,0.00013523,2]
[399113829,1766111306117,5000.0,0.00013523,2]
[399113841,1766111322980,245.35548095,0.00013,3]
[399113842,1766111323358,1177.41615425,8.9e-05,2]
[399113843,1766111323381,585.66986026,8.9e-05,2]
[399113850,1766111329454,5000.0,0.00013523,2]
[399113856,1766111343480,500.0,0.00013273,2]
[399113857,1766111343782,500.0,0.00013273,2]
[399113858,1766111343936,500.0,0.00013273,2]
[399113861,1766111347233,-150.0,0.00013524,2]
[399113862,1766111347257,-238.0,0.00013598,2]
[399113863,1766111347279,-300.0,0.00013598,2]
[399113864,1766111347299,-7067.74731661,0.00013599,2]
[399113865,1766111347320,-191.44983364,0.00013599,2]
[399113866,1766111347347,-300.0,0.00013673,2]
[399113867,1766111347373,-271.67015854,0.00013698,2]
[399113868,1766111347395,-500.0,0.00013698,2]
[399113869,1766111347419,-506.1,0.00013698,2]
[399113870,1766111347441,-1000.0,0.00013699,2]
[399113871,1766111347462,-60360.9599701,0.00013699,2]
[399113872,1766111347481,-285.292558,0.00013699,2]
[399113873,1766111347501,-500.0,0.00013699,2]
[399113874,1766111347519,-500.0,0.00013699,2]
[399113875,1766111347537,-500.0,0.00013699,2]
[399113876,1766111347556,-500.70374767,0.00013699,2]
[399113877,1766111347574,-500.0,0.00013699,2]
[399113878,1766111347592,-422.5469457,0.00013699,2]
[399113879,1766111347612,-500.0,0.00013699,2]
[399113880,1766111347630,-500.0,0.00013699,2]
[399113881,1766111347649,-500.0,0.00013699,2]
[399113882,1766111347668,-500.0,0.00013699,2]
[399113883,1766111347687,-359.0070707,0.00013699,2]
[399113884,1766111347706,-500.0,0.00013699,2]
[399113885,1766111347726,-500.0,0.00013699,2]
[399113886,1766111347747,-500.53569833,0.00013699,2]
[399113887,1766111347766,-500.0,0.00013699,2]
[399113888,1766111347785,-500.48505288,0.00013699,2]
[399113889,1766111347805,-500.0,0.00013699,2]
[399113890,1766111347823,-500.70734985,0.00013699,2]
[399113891,1766111347842,-500.0,0.00013699,2]
[399113892,1766111347860,-186.61304972,0.00013699,2]
[399113893,1766111347882,-500.0,0.00013699,2]
[399113894,1766111347901,-500.0,0.00013699,2]
[399113895,1766111347920,-500.0,0.00013699,2]
[399113896,1766111347938,-500.0,0.00013699,2]
[399113897,1766111347956,-500.0,0.00013699,2]
[399113898,1766111347978,-500.45705758,0.00013699,2]
[399113899,1766111347999,-500.0,0.00013699,2]
[399113900,1766111348019,-146.14650623,0.00013699,2]
[399113902,1766111349994,150.0,0.00010758,2]
[399113903,1766111350153,500.0,0.00013273,2]
[399113904,1766111350411,184.24,0.00011736,2]
[399113905,1766111350800,276.37,0.00012715,2]
[399113906,1766111351089,-500.0,0.00013698,2]
[399113908,1766111351108,-500.0,0.00013698,2]
[399113909,1766111351129,-479.37318001,0.00013698,2]
[399113910,1766111351149,-143.98626856,0.00013699,2]
[399113911,1766111352662,1803.73013974,0.00013523,2]
[399113912,1766111352685,3196.26986026,0.00013523,2]
[399113919,1766111368649,500.0,0.00013273,2]
[399113920,1766111369130,-368.49,0.00013693,2]
[399113921,1766111369151,-500.0,0.00013699,2]
[399113922,1766111369172,-500.0,0.00013699,2]
[399113923,1766111369194,-500.0,0.00013699,2]
[399113924,1766111369214,-500.0,0.00013699,2]
[399113925,1766111369236,-500.0,0.00013699,2]
[399113926,1766111369260,-500.0,0.00013699,2]
[399113927,1766111369278,-500.0,0.00013699,2]
[399113928,1766111369297,-500.0,0.00013699,2]
[399113929,1766111369318,-500.0,0.00013699,2]
[399113930,1766111369337,-500.0,0.00013699,2]
[399113932,1766111369355,-500.0,0.00013699,2]
[399113933,1766111369374,-500.0,0.00013699,2]
[399113934,1766111369394,-500.0,0.00013699,2]
[399113935,1766111369412,-500.0,0.00013699,2]
[399113936,1766111369432,-154.07,0.00013699,2]
[399113937,1766111369453,-522.04550107,0.0001382,2]
[399113938,1766111369472,-186.26337017,0.0001382,2]
[399113939,1766111369492,-500.0,0.0001382,2]
[399113940,1766111369513,-494.3654839,0.0001382,2]
[399113941,1766111369533,-502.92288875,0.0001382,2]
[399113942,1766111369552,-500.0,0.0001382,2]
[399113943,1766111369583,-506.1,0.0001382,2]
[399113944,1766111369602,-501.43797399,0.00013821,2]
[399113945,1766111369621,-1000.0,0.00013821,2]
[399113946,1766111369640,-1000.0,0.00013821,2]
[399113947,1766111369658,-1000.0,0.00013821,2]
[399113948,1766111369676,-1000.0,0.00013821,2]
[399113949,1766111369695,-1000.0,0.00013821,2]
[399113950,1766111369716,-451.78772176,0.00013821,2]
[399113951,1766111369734,-1148.74217355,0.00013821,2]
[399113952,1766111369752,-1000.0,0.00013821,2]
[399113953,1766111369771,-1000.0,0.00013821,2]
[399113954,1766111369790,-1000.0,0.00013821,2]
[399113955,1766111369808,-1000.0,0.00013821,2]
[399113956,1766111369827,-1000.0,0.00013821,2]
[399113957,1766111369845,-1000.0,0.00013821,2]
[399113958,1766111369864,-1000.0,0.00013821,2]
[399113959,1766111369884,-1000.0,0.00013821,2]
[399113960,1766111369902,-154.08373216,0.00013973,2]
[399113961,1766111369921,-600.0,0.00014221,2]
[399113962,1766111369939,-506.1,0.00014246,2]
[399113963,1766111369957,-1000.0,0.00014247,2]
[399113964,1766111369975,-205.7127476,0.00014247,2]
[399113965,1766111369993,-354.7115447,0.00014247,2]
[399113966,1766111370012,-1049.33553539,0.00014247,2]
[399113967,1766111370032,-653.44978499,0.00014247,2]
[399113968,1766111370050,-500.0,0.00014247,2]
[399113969,1766111370068,-1000.67474989,0.00014247,2]
[399113970,1766111370087,-1099.95843345,0.00014247,2]
[399113971,1766111370105,-1000.0,0.00014247,2]
[399113972,1766111370128,-1000.0,0.00014247,2]
[399113973,1766111370148,-1000.0,0.00014247,2]
[399113974,1766111370169,-1000.0,0.00014247,2]
[399113975,1766111370192,-250.84708939,0.00014247,2]
[399113976,1766111370211,-1001.82821113,0.00014247,2]
[399113977,1766111370229,-1000.0,0.00014247,2]
[399113978,1766111370250,-500.0,0.00014247,2]
[399113979,1766111370269,-1000.0,0.00014247,2]
[399113980,1766111370293,-1000.87159676,0.00014247,2]
[399113981,1766111370317,-1000.0,0.00014247,2]
[399113982,1766111370336,-1000.0,0.00014247,2]
[399113983,1766111370358,-1000.0,0.00014247,2]
[399113984,1766111370381,-1000.0,0.00014247,2]
[399113985,1766111370403,-165.30080164,0.00014247,2]
[399113986,1766111370424,-425.74949727,0.00014247,2]
[399113987,1766111370444,-347.45618444,0.00014247,2]
[399113988,1766111370463,-506.1,0.00014368,2]
[399113989,1766111370485,-1029.85455268,0.00014368,2]
[399113990,1766111370503,-1500.0,0.00014368,2]
[399113991,1766111370523,-1500.0,0.00014368,2]
[399113992,1766111370544,-1500.0,0.00014368,2]
[399113993,1766111370564,-1500.0,0.00014368,2]
[399113994,1766111370585,-1500.0,0.00014368,2]
[399113995,1766111370606,-1500.0,0.00014368,2]
[399113996,1766111370624,-570.87449675,0.00014368,2]
[399113997,1766111370642,-1500.0,0.00014368,2]
[399113998,1766111370779,-1500.0,0.00014368,2]
[399113999,1766111370800,-1500.0,0.00014368,2]
[399114000,1766111370819,-1500.0,0.00014368,2]
[399114001,1766111370838,-1500.0,0.00014368,2]
[399114002,1766111370858,-460.61,0.00014671,2]
[399114003,1766111370876,-900.0,0.00014768,2]
[399114004,1766111370894,-1500.0,0.00014795,2]
[399114005,1766111370912,-1500.0,0.00014795,2]
[399114006,1766111370930,-657.25392582,0.00014795,2]
[399114007,1766111370950,-1645.6692003,0.00014795,2]
[399114008,1766111370968,-1457.60222662,0.00014795,2]
[399114009,1766111370988,-1500.0,0.00014795,2]
[399114010,1766111371006,-1500.0,0.00014795,2]
[399114011,1766111371027,-1500.0,0.00014795,2]
[399114012,1766111371045,-1500.0,0.00014795,2]
[399114013,1766111371065,-1000.0,0.00014795,2]
[399114014,1766111371084,-1359.34966548,0.000149,2]
[399114015,1766111371106,-506.1,0.00014916,2]
[399114016,1766111371127,-1191.55558068,0.00014916,2]
[399114017,1766111371146,-886.91323393,0.00014916,2]
[399114018,1766111371165,-2000.0,0.00014916,2]
[399114019,1766111371183,-2000.0,0.00014916,2]
[399114020,1766111371204,-2000.0,0.00014916,2]
[399114021,1766111371226,-2000.0,0.00014916,2]
[399114022,1766111371248,-2000.0,0.00014916,2]
[399114023,1766111371267,-2000.0,0.00014916,2]
[399114024,1766111371289,-1694.78601327,0.00014916,2]
[399114025,1766111371311,-1500.0,0.00014916,2]
[399114026,1766111371331,-1189.72504614,0.00014916,2]
[399114027,1766111371352,-275.47735073,0.00014996,2]
[399114028,1766111371371,-6077.6732751,0.00015,2]
[399114029,1766111371392,-273.64116876,0.00015068,2]
[399114030,1766111371413,-267.54,0.000152,7]
[399114031,1766111371432,-1200.0,0.00015316,2]
[399114032,1766111371452,-506.1,0.00015342,2]
[399114033,1766111371471,-2000.0,0.00015342,2]
[399114034,1766111371491,-2000.0,0.00015342,2]
[399114035,1766111371513,-659.32440038,0.00015342,2]
[399114036,1766111371542,-2000.0,0.00015342,2]
[399114037,1766111371568,-2000.0,0.00015342,2]
[399114038,1766111371588,-227.92786675,0.0001536,120]
[399114039,1766111371608,-661.28212186,0.00015464,2]
[399114040,1766111371628,-2500.0,0.00015464,2]
[399114041,1766111371647,-2500.0,0.00015464,2]
[399114042,1766111371667,-500.0,0.00015464,2]
[399114043,1766111371686,-2500.0,0.00015464,2]
[399114044,1766111371706,-2500.0,0.00015464,2]
[399114045,1766111371726,-177.0,0.00015524,2]
[399114046,1766111371748,-552.73,0.00015649,2]
[399114047,1766111371768,-827.44235505,0.00015864,2]
[399114048,1766111371788,-1639.59895212,0.0001589,2]
[399114049,1766111371808,-2500.0,0.0001589,2]
[399114050,1766111371827,-1812.92018742,0.0001589,2]
[399114051,1766111371847,-1794.9527478,0.0001589,2]
[399114052,1766111371867,-215.21955156,0.00016,2]
[399114053,1766111371887,-2350.25762059,0.00016012,2]
[399114054,1766111371906,-3000.0,0.00016012,2]
[399114055,1766111371927,-3000.0,0.00016012,2]
[399114056,1766111371948,-3000.0,0.00016012,2]
[399114057,1766111371971,-506.1,0.00016399,2]
[399114058,1766111371992,-1000.0,0.000164,2]
[399114059,1766111372012,-1000.0,0.000164,2]
[399114060,1766111372031,-154.503335,0.00016438,2]
[399114061,1766111372053,-3000.0,0.00016438,2]
[399114062,1766111372073,-3500.0,0.0001656,2]
[399114063,1766111372093,-1146.05228719,0.0001656,2]
[399114064,1766111372113,-3500.0,0.0001656,2]
[399114065,1766111372135,-644.86,0.00016627,2]
[399114066,1766111372155,-3500.0,0.00016986,2]
[399114067,1766111372175,-11484.61830796,0.00017,2]
[399114068,1766111372195,-10344.95710485,0.00017,2]
[399114069,1766111372216,-4000.0,0.00017108,2]
[399114070,1766111372238,-2684.91236648,0.00017108,2]
[399114071,1766111372261,-204.0,0.00017524,2]
[399114072,1766111372282,-1672.2772557,0.00017534,2]
[399114073,1766111372304,-736.98,0.00017605,2]
[399114074,1766111372325,-2315.78938203,0.00017656,2]
[399114075,1766111372345,-160.0,0.00017717,2]
[399114076,1766111372365,-29929.59695018,0.00018,2]
[399114077,1766111372385,-267.94983324,0.00018076,2]
[399114078,1766111372405,-260.0,0.00018265,2]
[399114079,1766111372427,-829.1,0.00018583,2]
[399114080,1766111372447,-460.0,0.00018813,2]
[399114081,1766111372466,-26344.84298271,0.00019,2]
[399114082,1766111372489,-355.32589905,0.00019,20]
[399114083,1766111372508,-2405.89,0.00019,2]
[399114084,1766111372527,-906.24665445,0.00019,2]
[399114085,1766111372547,-231.0,0.00019524,2]
[399114086,1766111372568,-921.22,0.00019561,2]
[399114087,1766111372589,-307.59,0.000196,2]
[399114088,1766111372607,-14203.6790409,0.0002,2]
[399114089,1766111372626,-285.292558,0.00020187,2]
[399114090,1766111372646,-258.0,0.00021524,2]
[399114091,1766111372664,-273.8411733,0.00022,14]
[399114092,1766111372684,-285.0,0.00023524,2]
[399114093,1766111372704,-223.87,0.000236,2]
[399114094,1766111372723,-1128.30876142,0.00024,30]
[399114095,1766111372742,-199.75908226,0.000249,2]
[399114096,1766111372761,-312.0,0.00025524,2]
[399114097,1766111372780,-70879.82386212,0.0002599,2]
[399114098,1766111372800,-99614.83597091,0.00026,30]
[399114099,1766111372820,-285.292558,0.00026676,2]
[399114100,1766111372840,-191.44983362,0.00027193,2]
[399114101,1766111372859,-339.0,0.00027524,2]
[399114102,1766111372878,-646.2816617,0.00028,2]
[399114103,1766111372897,-366.0,0.00029524,2]
[399114104,1766111372915,-163.95575479,0.0003,120]
[399114106,1766111372935,-1003.8289557,0.00030363,14]
[399114107,1766111372954,-182.75,0.00030911,27]
[399114108,1766111372973,-184.703,0.00030911,27]
[399114109,1766111372992,-474.6588357,0.0003112,2]
[399114110,1766111373012,-393.0,0.00031524,2]
[399114111,1766111373032,-1313.02244535,0.000319,2]
[399114112,1766111373052,-170.859521,0.00032796,2]
[399114113,1766111373071,-321.58,0.00032877,10]
[399114114,1766111373093,-69.13217719,0.00033093,2]
[399114126,1766111406265,500.0,0.00013273,2]
[399114127,1766111406945,500.0,0.00013273,2]
[399114136,1766111421543,-500.0,0.00013698,2]
[399114137,1766111421570,-500.0,0.00013698,2]
[399114138,1766111421598,-500.0,0.00013698,2]
[399114139,1766111421625,-500.0,0.00013698,2]
[399114140,1766111421652,-500.0,0.00013699,2]
[399114141,1766111421680,-500.0,0.00013699,2]
[399114142,1766111421706,-500.0,0.00013699,2]
[399114143,1766111421732,-500.0,0.00013699,2]
[399114144,1766111421758,-500.0,0.00013699,2]
[399114145,1766111421788,-500.0,0.00013699,2]
[399114146,1766111422081,-500.0,0.00013699,2]
[399114147,1766111422108,-500.0,0.0001382,2]
[399114148,1766111422136,-1000.0,0.00013821,2]
[399114149,1766111422163,-1000.0,0.00013821,2]
[399114150,1766111422191,-500.0,0.00014246,2]
[399114151,1766111422219,-920.48916977,0.00014247,2]
[399114152,1766111422246,-472.85418914,0.00014247,2]
[399114153,1766111422524,-213.32328218,0.00014247,2]
[399114154,1766111422553,-1000.0,0.00014247,2]
[399114155,1766111422580,-1000.0,0.00014247,2]
[399114156,1766111422610,-1000.0,0.00014247,2]
[399114157,1766111422638,-1000.0,0.00014247,2]
[399114158,1766111422667,-500.0,0.00014368,2]
[399114159,1766111422704,-1500.0,0.00014368,2]
[399114160,1766111422731,-1500.0,0.00014368,2]
[399114162,1766111425555,150.0,9.822e-05,2]
[399114163,1766111425956,150.0,0.00010715,2]
[399114164,1766111426341,150.0,0.00011608,2]
[399114165,1766111426759,150.0,0.000125,2]
[399114166,1766111427150,184.06,0.00013393,2]
[399114168,1766111428002,220.87,0.00014286,2]
[399114197,1766111432274,-256.30600488,0.00014795,2]
[399114218,1766111438278,-303.69,0.00014795,2]
[399114283,1766111439291,-940.00399512,0.00014795,2]
[399114285,1766111439302,-1500.0,0.00014795,2]
[399114287,1766111439311,-1500.65068767,0.00014795,2]
[399114289,1766111439321,-500.0,0.00014795,2]
[399114292,1766111439331,-150.0,0.00014855,2]
[399114294,1766111439341,-500.0,0.00014916,2]
[399114296,1766111439350,-2000.0,0.00014916,2]
[399114298,1766111439359,-929.03410366,0.00014916,2]
[399114300,1766111439368,-257.68,0.00015179,2]
[399114302,1766111439378,-500.0,0.00015342,2]
[399114303,1766111439387,-500.0,0.00015864,2]
[399114305,1766111439397,-294.49,0.00016072,2]
[399114307,1766111439406,-1000.0,0.000161,2]
[399114309,1766111439415,-500.0,0.00016399,2]
[399114311,1766111439425,-258.87160893,0.00016855,2]
[399114314,1766111439435,-331.3,0.00016965,2]
[399114315,1766111439446,-5000.0,0.00017429,2]
[399114317,1766111439455,-368.11,0.00017858,2]
[399114319,1766111439464,-500.0,0.00018938,2]
[399114321,1766111439473,-266.41014383,0.00033093,2]
[399114323,1766111439483,-285.292558,0.00033165,2]
[399114325,1766111439492,-162.73903017,0.000332,117]
[399114327,1766111439503,-280.9736282,0.00033617,2]
[399114329,1766111439512,-1088.09307553,0.0003636,2]
[399114331,1766111439522,-206.47130604,0.00036386,16]
[399114333,1766111439531,-1041.66666667,0.00036516,2]
[399114335,1766111439540,-275.47735073,0.00036888,2]
[399114337,1766111439549,-307.59,0.000369,30]
[399114340,1766111439560,-164.57674506,0.0003748,30]
[399114342,1766111439570,-475.0,0.00037486,120]
[399114344,1766111439580,-475.0,0.00037486,120]
[399114346,1766111439590,-608.43222967,0.00038206,2]
[399114348,1766111439599,-500.0,0.00038989,2]
[399114350,1766111439609,-500.0,0.00038989,2]
[399114352,1766111439619,-500.0,0.00038989,2]
[399114354,1766111439629,-500.0,0.00038989,2]
[399114356,1766111439638,-164.37479778,0.00038999,15]
[399114358,1766111439648,-794.15912953,0.00038999,15]
[399114359,1766111439658,-794.15912953,0.00038999,15]
[399114362,1766111439668,-794.15912953,0.00038999,15]
[399114363,1766111439678,-500.0,0.00038999,15]
[399114365,1766111439688,-794.15912953,0.00038999,15]
[399114367,1766111439698,-500.0,0.00038999,15]
[399114369,1766111439707,-794.15912953,0.00038999,15]
[399114371,1766111439717,-500.0,0.00038999,15]
[399114373,1766111439729,-794.15912953,0.00038999,15]
[399114375,1766111439739,-204.81962321,0.00038999,15]
[399114377,1766111439749,-794.15912953,0.00038999,15]
[399114379,1766111439758,-794.15912953,0.00038999,15]
[399114381,1766111439769,-500.0,0.00038999,15]
[399114383,1766111439779,-794.15912953,0.00038999,15]
[399114385,1766111439789,-794.15912953,0.00038999,15]
[399114387,1766111439798,-500.0,0.00038999,15]
[399114389,1766111439808,-794.15912953,0.00038999,15]
[399114391,1766111439818,-794.15912953,0.00038999,15]
[399114393,1766111439831,-794.15912953,0.00038999,15]
[399114395,1766111439853,-794.15912953,0.00038999,15]
[399114397,1766111439865,-794.15912953,0.00038999,15]
[399114399,1766111439875,-794.15912953,0.00038999,15]
[399114401,1766111439884,-794.15912953,0.00038999,15]
[399114403,1766111439894,-794.15912953,0.00038999,15]
[399114405,1766111439904,-794.15912953,0.00038999,15]
[399114407,1766111439913,-794.15912953,0.00038999,15]
[399114409,1766111439922,-794.15912953,0.00038999,15]
[399114411,1766111439932,-794.15912953,0.00038999,15]
[399114413,1766111439941,-794.15912953,0.00038999,15]
[399114415,1766111439950,-794.15912953,0.00038999,15]
[399114417,1766111439959,-794.15912953,0.00038999,15]
[399114419,1766111439968,-308.5407412,0.00038999,15]
[399114495,1766111440593,-485.61838833,0.00038999,15]
[399114497,1766111440603,-14.11744547,0.00038999,15]
[399114499,1766111440615,-780.04168406,0.00038999,15]
[399114501,1766111440625,-794.15912953,0.00038999,15]
[399114503,1766111440636,-794.15912953,0.00038999,15]
[399114505,1766111440653,-794.15912953,0.00038999,15]
[399114507,1766111440666,-794.15912953,0.00038999,15]
[399114509,1766111440676,-794.15912953,0.00038999,15]
[399114512,1766111440687,-794.15912953,0.00038999,15]
[399114513,1766111440697,-794.15912953,0.00038999,15]
[399114515,1766111440707,-794.15912953,0.00038999,15]
[399114517,1766111440716,-794.15912953,0.00038999,15]
[399114519,1766111440727,-794.15912953,0.00038999,15]
[399114521,1766111440736,-794.15912953,0.00038999,15]
[399114523,1766111440746,-794.15912953,0.00038999,15]
[399114525,1766111440756,-794.15912953,0.00038999,15]
[399114527,1766111440766,-794.15912953,0.00038999,15]
[399114529,1766111440786,-794.15912953,0.00038999,15]
[399114532,1766111440809,-794.15912953,0.00038999,15]
[399114533,1766111440820,-794.15912953,0.00038999,15]
[399114535,1766111440831,-794.15912953,0.00038999,15]
[399114538,1766111440845,-794.15912953,0.00038999,15]
[399114540,1766111440857,-794.15912953,0.00038999,15]
[399114542,1766111440867,-794.15912953,0.00038999,15]
[399114544,1766111440878,-794.15912953,0.00038999,15]
[399114546,1766111440887,-794.15912953,0.00038999,15]
[399114548,1766111440898,-794.15912953,0.00038999,15]
[399114550,1766111440909,-794.15912953,0.00038999,15]
[399114552,1766111440919,-794.15912953,0.00038999,15]
[399114554,1766111440929,-794.15912953,0.00038999,15]
[399114555,1766111440938,-794.15912953,0.00038999,15]
[399114557,1766111440949,-794.15912953,0.00038999,15]
[399114558,1766111440958,-794.15912953,0.00038999,15]
[399114559,1766111440968,-364.44886673,0.00038999,15]
[399114578,1766111443422,-429.7102628,0.00038999,15]
[399114579,1766111443433,-4747.05,0.00039,120]
[399114580,1766111443442,-1925.22485131,0.00039407,2]
[399114587,1766111467763,500.0,0.00013273,2]
[399114590,1766111472158,500.0,0.00013273,2]
[399114592,1766111523819,500.0,0.00013273,2]
[399114603,1766111527443,500.0,0.00013273,2]
[399114605,1766111583570,500.0,0.00013273,2]
[399114606,1766111583961,500.0,0.00013273,2]
[399114607,1766111584324,-193.66890384,0.00013698,2]
[399114608,1766111585936,-106.33109616,0.00013698,2]
[399114609,1766111585960,-238.21330733,0.00013698,2]
[399114610,1766111586745,500.0,0.00013273,2]
[399114611,1766111586962,500.0,0.00013273,2]
[399114612,1766111587710,-417.11128497,0.00013698,2]
[399114613,1766111591353,500.0,0.00013273,2]
[399114614,1766111593289,-166.39,0.00013698,2]
[399114615,1766111598395,-279.2854077,0.00013698,2]
[399114616,1766111598421,-500.0,0.00013699,2]
[399114617,1766111598448,-500.0,0.00013699,2]
[399114618,1766111598474,-500.0,0.00013699,2]
[399114619,1766111598501,-500.0,0.00013699,2]
[399114620,1766111598529,-500.0,0.00013699,2]
[399114621,1766111598556,-500.0,0.00013699,2]
[399114622,1766111598582,-500.40156014,0.00013699,2]
[399114623,1766111598609,-500.0,0.00013699,2]